bitfinex/quotes_ETHUSD_20240902
["timestamp","ask_amount","ask_price","bid_price","bid_amount"]
[1725247612388,2.13608177,2455.9,2455.5,0.438113]
[1725247612589,2.13608177,2455.9,2455.4,4.46255301]
[1725247613192,2.03575,2456.1,2455.6,2.03616]
[1725247613193,1.70988071,2456.1,2455.6,2.03616]
[1725247613372,1.70988071,2456.1,2455.7,2.239676]
[1725247613682,1.70988071,2456.2,2455.7,2.239676]
[1725247613883,1.70988071,2456.2,2455.7,0.203616]
[1725247614083,1.70988071,2456.2,2455.7,2.239686]
[1725247614289,1.70988071,2456.3,2455.9,2.3448]
[1725247614486,1.70988071,2456.2,2455.8,2.03599]
[1725247614668,4.70988071,2456.2,2455.8,2.03599]
[1725247614875,4.70988071,2456.2,2455.8,2.677684]
[1725247615100,3.0,2456.1,2455.8,2.677684]
[1725247615304,4.70988071,2456.3,2455.8,2.677684]
[1725247615521,1.70988071,2456.2,2455.8,2.677684]
[1725247615798,1.70988071,2456.2,2455.9,0.27591161]
[1725247615961,4.70988071,2456.3,2455.9,0.27591161]
[1725247616166,1.70988071,2456.2,2455.9,0.27591161]
[1725247616365,4.70988071,2456.3,2455.9,0.27591161]
[1725247617667,1.70988071,2456.4,2456.0,2.03581]
[1725247617867,1.70988071,2456.4,2456.1,0.23117216]
[1725247618208,1.70988071,2456.4,2456.0,2.03581]
[1725247619026,2.13839267,2456.5,2456.0,2.03581]
[1725247619027,1.70988071,2456.5,2456.0,2.03581]
[1725247619166,4.70988071,2456.5,2456.0,2.03581]
[1725247621287,3.0,2456.5,2456.0,2.03581]
[1725247621487,3.0,2456.5,2456.0,2.53475056]
[1725247622211,3.0,2456.5,2456.0,0.49894056]
[1725247622375,4.70988071,2456.5,2455.8,2.03599]
[1725247622578,6.74535071,2456.5,2455.8,2.03599]
[1725247622852,2.03556,2456.4,2455.6,15.12492143]
[1725247623150,6.74544071,2456.4,2455.7,2.03607]
[1725247623359,5.03556,2456.4,2455.7,2.03607]
[1725247623524,6.74544071,2456.4,2455.7,3.75216914]
[1725247624655,6.74544071,2456.4,2455.8,2.03599]
[1725247626617,5.03556,2456.4,2455.8,2.03599]
[1725247627049,6.74544071,2456.4,2455.8,2.03599]
[1725247627344,5.03556,2456.4,2455.8,2.03599]
[1725247627728,6.74544071,2456.4,2455.8,2.03599]
[1725247628129,2.03558,2456.3,2455.6,15.12492143]
[1725247628362,5.03558,2456.3,2455.6,15.12492143]
[1725247628567,7.45308,2456.3,2455.6,15.12492143]
[1725247628858,0.42605439,2456.2,2455.7,1.51249214]
[1725247629250,0.42605439,2456.2,2455.6,9.7748]
[1725247629717,2.03583,2456.0,2455.6,9.7748]
[1725247629938,2.03583,2456.0,2455.6,7.43]
[1725247631518,2.03605,2455.8,2455.6,7.43]
[1725247631863,2.03605,2455.8,2455.2,2.4676]
[1725247632020,2.03605,2455.8,2455.2,4.69007614]
[1725247632449,2.03608,2455.7,2455.2,4.69007614]
[1725247632649,2.03617,2455.6,2455.0,9.8976]
[1725247632923,2.03605,2455.8,2455.1,0.08145544]
[1725247633230,2.03608,2455.7,2455.1,1.28302598]
[1725247633542,2.03608,2455.7,2455.1,1.20157054]
[1725247633543,5.03608,2455.7,2455.1,1.20157054]
[1725247635255,3.0,2455.7,2455.1,1.20157054]
[1725247635462,3.0,2455.7,2455.2,1.31358205]
[1725247635772,5.03605,2455.8,2455.1,1.20157054]
[1725247637177,2.0361,2455.7,2455.1,1.20157054]
[1725247637380,2.0361,2455.7,2455.1,1.28302476]
[1725247637381,3.0,2455.7,2455.1,1.28302476]
[1725247637548,3.0,2455.7,2455.2,2.4676]
[1725247637752,3.0,2455.7,2455.3,0.36691705]
[1725247637985,5.03592,2455.9,2455.3,0.36691705]
[1725247640750,5.03591,2455.9,2455.3,0.36691705]
[1725247641472,2.036,2455.8,2455.3,0.36691705]
[1725247641679,5.036,2455.8,2455.2,4.50402]
[1725247641893,7.07207,2455.8,2455.2,2.4676]
[1725247642094,2.03608,2455.7,2455.2,2.4676]
[1725247642290,5.03608,2455.7,2455.2,2.4676]
[1725247642444,2.03617,2455.6,2455.2,2.4676]
[1725247644442,2.03633,2455.4,2454.9,2.3594]
[1725247648948,4.07273,2455.4,2454.9,2.3594]
[1725247649182,5.4643,2455.3,2454.7,9.8144]
[1725247650083,2.0365,2455.2,2454.7,9.8144]
[1725247653297,2.0365,2455.2,2454.6,2.03693]
[1725247654487,3.0,2455.3,2454.9,2.4566]
[1725247654688,3.74608071,2455.6,2454.9,2.4566]
[1725247654689,5.03625,2455.5,2454.9,2.4566]
[1725247655897,3.0,2455.5,2454.9,2.4566]
[1725247656226,3.0,2455.6,2455.0,2.11811316]
[1725247656426,5.03608,2455.7,2455.1,0.45747132]
[1725247658828,3.0,2455.7,2455.2,4.49308]
[1725247659033,3.0,2455.8,2455.3,0.08145316]
[1725247659243,3.0,2455.9,2455.5,4.49277]
[1725247659540,1.70988071,2456.4,2455.8,4.49254]
[1725247659741,3.74513071,2456.7,2456.1,2.4566]
[1725247659905,0.42596764,2456.5,2456.1,2.4566]
[1725247660500,0.42596764,2456.5,2456.2,2.11706463]
[1725247660838,0.42596764,2456.5,2455.8,0.52268853]
[1725247660839,1.70988071,2457.3,2456.8,2.03515]
[1725247660991,1.70988071,2457.5,2456.9,2.480155]
[1725247661195,2.13576222,2457.7,2457.0,4.45067]
[1725247661398,0.42588151,2457.7,2457.0,4.45067]
[1725247661709,0.41701122,2457.6,2457.0,4.45067]
[1725247662333,2.45159122,2457.6,2457.0,2.4157]
[1725247662624,0.42798081,2457.5,2456.7,2.4157]
[1725247662820,2.03468,2457.4,2456.7,2.4157]
[1725247663148,2.46266081,2457.4,2456.7,4.45094]
[1725247663351,2.03475,2457.3,2456.7,3.064335]
[1725247663641,2.03475,2457.3,2456.7,2.4157]
[1725247664552,2.0349,2457.2,2456.7,2.4157]
[1725247664753,2.03475,2457.3,2456.7,2.4157]
[1725247665052,2.03484,2457.2,2456.7,2.4157]
[1725247668012,2.03492,2457.1,2456.5,2.03541]
[1725247670415,2.03502,2457.0,2456.3,8.36076143]
[1725247670616,2.03502,2457.0,2456.3,9.61797657]
[1725247670949,2.0351,2456.9,2456.3,4.26841514]
[1725247671148,2.0351,2456.9,2456.3,2.4612]
[1725247673641,2.0351,2456.9,2456.3,5.77518143]
[1725247674024,2.0351,2456.9,2456.3,7.81076143]
[1725247674260,5.03493,2457.1,2456.5,2.03541]
[1725247674426,2.03493,2457.1,2456.5,2.03541]
[1725247675336,2.03493,2457.1,2456.3,9.53841057]
[1725247676230,4.06993,2457.1,2456.3,9.53841057]
[1725247676431,3.0,2457.0,2456.4,2.98933106]
[1725247676637,2.03493,2457.1,2456.4,2.98933106]
[1725247677730,2.03493,2457.1,2456.4,0.95384106]
[1725247679587,2.03505,2457.0,2456.4,0.95384106]
[1725247679872,5.03505,2457.0,2456.4,0.95384106]
[1725247681468,2.03525,2456.7,2456.3,2.4612]
[1725247683330,2.03543,2456.5,2456.3,2.4612]
[1725247683555,2.0355,2456.4,2456.1,7.43]
[1725247683969,2.0355,2456.4,2455.6,2.4259]
[1725247683970,2.03558,2456.3,2455.6,2.4259]
[1725247685083,2.03566,2456.2,2455.6,2.4259]
[1725247685245,2.03558,2456.3,2455.6,2.4259]
[1725247685455,2.03576,2456.1,2455.6,2.4259]
[1725247686272,2.03558,2456.3,2455.6,2.4259]
[1725247686453,5.03545,2456.5,2455.6,4.46205]
[1725247686786,3.0,2456.5,2456.0,2.2787]
[1725247687080,2.03544,2456.5,2456.0,2.2787]
[1725247687386,5.03544,2456.5,2456.0,2.2787]
[1725247695498,3.0,2456.5,2456.0,2.2787]
[1725247695670,3.0,2456.7,2456.1,2.03574]
[1725247695871,3.0,2456.8,2456.3,2.0355]
[1725247696072,2.03502,2457.0,2456.3,5.4308963]
[1725247696392,2.03518,2456.8,2456.2,2.4588]
[1725247696571,2.03525,2456.7,2456.2,2.4588]
[1725247696920,3.0,2456.7,2456.2,2.4588]
[1725247697127,5.03518,2456.8,2456.2,2.4588]
[1725247697912,2.03502,2457.0,2456.3,2.11693789]
[1725247698223,2.03502,2457.0,2456.4,2.4588]
[1725247698507,2.03517,2456.8,2456.4,2.4588]
[1725247701973,2.03517,2456.8,2456.1,7.43]
[1725247702173,2.03535,2456.6,2456.1,9.7924]
[1725247706809,2.03535,2456.6,2456.1,2.3624]
[1725247709176,2.03535,2456.6,2455.9,2.3267]
[1725247709410,2.03552,2456.4,2455.9,2.3267]
[1725247709711,2.03559,2456.3,2455.9,2.3267]
[1725247710047,3.74540071,2456.4,2455.9,2.3267]
[1725247710213,3.74540071,2456.4,2455.7,2.03604]
[1725247710214,4.13038071,2456.4,2455.7,2.3547]
[1725247710417,2.03573,2456.2,2455.7,2.3547]
[1725247711504,2.03574,2456.1,2455.7,2.3547]
[1725247713222,2.03583,2456.0,2455.7,2.3547]
[1725247713403,2.03583,2456.0,2455.5,2.39]
[1725247714956,2.03583,2456.0,2455.5,2.38232637]
[1725247721147,4.07144,2456.2,2455.5,2.38232637]
[1725247721369,4.07144,2456.2,2455.5,3.35922215]
[1725247721958,2.03577,2456.1,2455.5,3.35922215]
[1725247725593,2.03577,2456.1,2455.5,2.38232637]
[1725247728897,0.42582554,2456.0,2455.5,2.38232637]
[1725247730288,0.42582554,2456.0,2455.7,5.35004143]
[1725247730476,0.42582554,2456.0,2455.9,2.03591]
[1725247731894,0.42582554,2456.0,2455.9,4.43261]
[1725247732409,0.42480969,2456.0,2455.9,2.3967]
[1725247732908,0.42480969,2456.0,2455.9,4.43261]
[1725247735426,0.42480969,2456.0,2455.9,2.3967]
[1725247735775,0.42480969,2456.0,2455.6,4.44384]
[1725247736500,0.42480969,2456.0,2455.6,2.4077]
[1725247736815,0.67086266,2456.0,2455.6,2.4077]
[1725247737604,0.67086266,2456.0,2455.4,3.7871738]
[1725247738123,0.67086266,2456.0,2455.4,5.71857395]
[1725247738300,0.42480969,2456.0,2455.4,5.71857395]
[1725247739218,0.42480969,2456.0,2455.4,7.83632613]
[1725247739637,0.42480969,2456.0,2455.5,2.03623]
[1725247739922,0.42480969,2456.0,2455.6,3.39231076]
[1725247740580,0.42480969,2456.0,2455.7,4.5182]
[1725247740786,0.42480969,2456.0,2455.8,3.39230557]
[1725247741216,0.42480969,2456.0,2455.8,0.08143162]
[1725247741927,0.42480969,2456.0,2455.9,4.49101]
[1725247745085,0.42480969,2456.0,2455.9,7.80188395]
[1725247745313,0.42480969,2456.0,2455.9,9.14021551]
[1725247746021,0.42480969,2456.0,2455.9,11.17612551]
[1725247747786,0.42480969,2456.0,2455.9,5.27934156]
[1725247747989,0.42480969,2456.0,2455.9,8.59021551]
[1725247748221,0.42480969,2456.0,2455.9,10.62612551]
[1725247748489,0.42480969,2456.0,2455.9,11.17612551]
[1725247752011,0.42480969,2456.0,2455.9,8.59021551]
[1725247752213,0.42480969,2456.0,2455.9,7.80188395]
[1725247752535,0.42480969,2456.0,2455.9,5.34678395]
[1725247752722,0.42480969,2456.0,2455.9,7.82128395]
[1725247752893,0.42480969,2456.0,2455.9,7.90271071]
[1725247753087,0.42480969,2456.0,2455.9,8.89658078]
[1725247755151,0.42480969,2456.0,2455.9,8.81515402]
[1725247759944,0.42480969,2456.0,2455.9,6.88319661]
[1725247760107,0.42480969,2456.0,2455.9,6.9646234]
[1725247760739,0.42480969,2456.0,2455.9,6.88319661]
[1725247761349,0.42480969,2456.0,2455.9,2.37278661]
[1725247761511,0.42480969,2456.0,2455.9,1.37891654]
[1725247761855,0.42480969,2456.0,2455.8,3.41490654]
[1725247762386,0.42480969,2456.0,2455.6,4.39683]
[1725247762387,0.42480969,2456.0,2455.6,3.41504654]
[1725247762564,2.68300969,2456.0,2455.6,1.37891654]
[1725247763682,2.68300969,2456.0,2455.8,1.37891654]
[1725247763683,0.42480969,2456.0,2455.8,1.37891654]
[1725247764363,0.42480969,2456.0,2455.9,2.11734287]
[1725247768051,0.42480969,2456.0,2455.9,5.42673107]
[1725247769891,0.42480969,2456.0,2455.9,7.46264107]
[1725247770050,0.42480969,2456.0,2455.9,8.99541518]
[1725247771687,0.42480969,2456.0,2455.9,8.91398231]
[1725247773806,1.70988071,2456.7,2456.4,2.03543]
[1725247773975,2.14001168,2456.8,2456.4,2.442534]
[1725247773976,1.70988071,2456.8,2456.4,2.442534]
[1725247774150,4.58281022,2456.9,2456.4,4.07086]
[1725247774365,1.70988071,2456.8,2456.2,2.03564]
[1725247775685,1.70988071,2456.8,2456.2,2.0356]
[1725247775997,1.70988071,2456.8,2456.3,5.42632077]
[1725247776201,3.11938219,2456.9,2456.4,2.03549]
[1725247776202,4.15698071,2456.9,2456.4,2.03549]
[1725247776709,4.15698071,2456.9,2456.5,2.03539]
[1725247777370,2.4471,2456.9,2456.5,2.03539]
[1725247778086,2.4471,2456.9,2456.6,2.03533]
[1725247778406,4.00798071,2457.1,2456.6,2.03533]
[1725247779064,1.70988071,2457.0,2456.4,2.03544]
[1725247779263,2.2981,2456.8,2456.2,2.03563]
[1725247779557,4.00798071,2456.8,2456.3,0.08141456]
[1725247779798,4.33327,2456.8,2456.3,0.08141456]
[1725247780307,2.2981,2456.8,2456.3,0.08141456]
[1725247780862,4.33329,2456.8,2456.2,2.03559]
[1725247781172,7.15091251,2456.8,2456.2,2.03559]
[1725247781372,7.15091251,2456.8,2456.1,9.46574]
[1725247786218,5.11572251,2456.8,2456.3,2.03555]
[1725247786368,2.2981,2456.8,2456.3,2.03555]
[1725247786796,2.2981,2456.8,2456.3,2.11696455]
[1725247787996,2.2981,2456.8,2456.4,1.37862575]
[1725247788668,4.00798071,2456.8,2456.4,1.37862575]
[1725247789106,2.2981,2456.8,2456.4,1.37862575]
[1725247789318,4.00798071,2456.8,2456.4,1.37862575]
[1725247789914,0.42583385,2456.7,2456.4,1.37862575]
[1725247790808,0.42583385,2456.7,2456.2,1.37862575]
[1725247791176,0.42583385,2456.7,2456.2,4.82634095]
[1725247793009,0.42583385,2456.7,2456.2,2.79071095]
[1725247793253,0.42583385,2456.7,2456.2,1.37862575]
[1725247798118,2.03536,2456.6,2456.2,1.37862575]
[1725247800443,2.0355,2456.4,2456.2,1.37862575]
[1725247800644,2.0355,2456.4,2456.1,7.43]
[1725247802058,2.13571456,2456.7,2456.3,4.46888]
[1725247802254,2.13571456,2456.7,2456.4,1.37862575]
[1725247802550,0.42583385,2456.7,2456.4,1.37862575]
[1725247805136,0.42583385,2456.7,2456.3,4.55028261]
[1725247805473,0.42583385,2456.7,2456.3,5.92890836]
[1725247806135,0.42583385,2456.7,2456.3,1.37862575]
[1725247806334,0.42583385,2456.7,2456.1,12.98673999]
[1725247806335,2.13571456,2456.7,2456.1,12.98673999]
[1725247806598,2.13571456,2456.7,2456.2,1.37862575]
[1725247807805,2.13571456,2456.7,2456.2,3.41428575]
[1725247807967,2.13571456,2456.7,2456.2,1.37862575]
[1725247808902,2.03556,2456.4,2456.1,7.43]
[1725247809196,6.17853071,2456.3,2456.1,7.43]
[1725247809504,4.46865,2456.3,2455.9,1.37862575]
[1725247809803,4.17133557,2456.4,2455.9,3.49648832]
[1725247809972,4.17133557,2456.4,2455.9,1.37862575]
[1725247810357,2.13577557,2456.4,2456.0,0.08143148]
[1725247810669,0.42589486,2456.4,2456.3,1.37862575]
[1725247810853,0.42589486,2456.4,2456.3,3.49562343]
[1725247811049,0.42589486,2456.4,2456.3,5.82142343]
[1725247811252,0.42589486,2456.4,2456.3,3.70442575]
[1725247812271,0.42589486,2456.4,2456.3,3.78583934]
[1725247812803,0.42589486,2456.4,2456.3,6.40356827]
[1725247815108,0.42589486,2456.4,2456.2,2.03565]
[1725247815317,0.42589486,2456.4,2456.0,4.4985]
[1725247815594,0.42589486,2456.4,2455.8,3.41459575]
[1725247815595,2.3371,2456.3,2455.8,3.41459575]
[1725247816095,2.3371,2456.3,2455.8,2.1173989]
[1725247816342,2.3371,2456.3,2455.8,3.49602465]
[1725247817476,2.3371,2456.3,2455.8,3.41459575]
[1725247817999,2.3371,2456.3,2455.8,3.49602463]
[1725247818820,0.42589486,2456.4,2456.2,1.37862575]
[1725247821672,0.42589486,2456.4,2456.3,0.0814163]
[1725247821876,0.42589486,2456.4,2456.3,2.03558]
[1725247822098,0.42589486,2456.4,2456.2,3.41428575]
[1725247822305,2.76359486,2456.4,2456.1,1.37862575]
[1725247823917,0.42589486,2456.4,2456.1,1.37862575]
[1725247824403,0.42589486,2456.4,2456.1,6.26288533]
[1725247824611,0.42589486,2456.4,2456.1,4.22714533]
[1725247824822,0.42589486,2456.4,2456.1,1.37862575]
[1725247827325,0.42589486,2456.4,2456.3,1.37862575]
[1725247828622,0.42589486,2456.4,2456.3,3.41420575]
[1725247828996,0.42589486,2456.4,2456.3,1.37862575]
[1725247829193,0.42589486,2456.4,2456.2,2.03566]
[1725247830304,0.42589486,2456.4,2456.2,2.58066757]
[1725247831205,0.42589486,2456.4,2456.2,2.03566]
[1725247831630,0.42589486,2456.4,2456.0,2.03579]
[1725247831944,0.42589486,2456.4,2456.0,3.41441575]
[1725247832802,0.42589486,2456.4,2456.0,1.37862575]
[1725247833408,0.42589486,2456.4,2455.8,3.41456575]
[1725247833409,2.2909,2456.3,2455.8,3.41456575]
[1725247833605,2.2909,2456.3,2455.8,1.37862575]
[1725247833837,4.00078071,2456.3,2455.8,1.37862575]
[1725247834140,2.03566,2456.2,2455.8,1.37862575]
[1725247837863,0.42578139,2456.1,2455.8,1.37862575]
[1725247838065,0.42578139,2456.1,2456.0,3.41445575]
[1725247838239,2.3542,2456.9,2456.0,3.41445575]
[1725247838240,1.70988071,2456.6,2456.2,2.03563]
[1725247838460,1.70988071,2456.6,2456.5,1.37862575]
[1725247838762,2.13566717,2456.7,2456.5,1.37862575]
[1725247838955,1.70988071,2456.7,2456.5,1.37862575]
[1725247839132,1.70988071,2456.8,2456.5,1.37862575]
[1725247839560,1.70988071,2456.8,2456.7,1.37862575]
[1725247839849,1.70988071,2457.0,2456.7,1.37862575]
[1725247840169,1.70988071,2457.0,2456.6,3.38895763]
[1725247840676,1.70988071,2457.1,2456.6,3.30754476]
[1725247841162,4.70988071,2457.1,2456.6,5.34287476]
[1725247842080,1.70988071,2457.1,2456.7,2.11664357]
[1725247842227,1.70988071,2457.2,2456.8,5.66484476]
[1725247842426,1.70988071,2457.3,2457.0,3.30754476]
[1725247842668,1.70988071,2457.5,2457.1,2.11627968]
[1725247843167,1.70988071,2457.6,2457.1,2.11627968]
[1725247843332,1.70988071,2457.7,2457.1,2.11627968]
[1725247843528,1.70988071,2457.7,2457.1,2.03489]
[1725247843723,2.58993492,2457.7,2457.1,2.03489]
[1725247843930,4.62435492,2457.7,2457.1,3.30754476]
[1725247844123,1.70988071,2457.6,2457.1,3.30754476]
[1725247844553,4.62435492,2457.7,2457.1,3.30754476]
[1725247846557,2.91447421,2457.7,2457.1,3.30754476]
[1725247847045,2.03442,2457.7,2457.2,2.4975]
[1725247847362,5.03442,2457.7,2457.2,2.4975]
[1725247847570,2.03451,2457.6,2457.1,3.30754476]
[1725247848176,2.0346,2457.5,2456.9,5.80504476]
[1725247848384,6.50399612,2457.7,2457.0,0.0813916]
[1725247848583,5.03442,2457.7,2457.0,0.86541208]
[1725247849783,2.03442,2457.7,2457.0,0.86541208]
[1725247849979,2.03442,2457.7,2457.1,0.87055268]
[1725247850275,5.46016051,2457.8,2457.2,0.08139138]
[1725247850480,3.42581051,2457.8,2457.2,4.34403]
[1725247850678,0.42581051,2457.8,2457.2,5.06897627]
[1725247850988,0.42581051,2457.8,2457.6,2.3092]
[1725247851382,2.74091051,2457.8,2457.5,0.08137532]
[1725247851600,2.74091051,2457.8,2457.1,2.2689]
[1725247851601,5.04933156,2457.8,2457.1,4.30377]
[1725247851745,4.77524051,2457.8,2457.1,2.03487]
[1725247851946,4.34985,2457.3,2456.7,4.30412]
[1725247852263,4.34985,2457.3,2456.6,7.43]
[1725247852467,2.03498,2457.1,2456.6,7.43]
[1725247852899,2.3151,2456.8,2456.2,11.96762776]
[1725247853201,2.03543,2456.5,2455.9,2.03587]
[1725247853411,2.03543,2456.5,2455.7,2.03603]
[1725247853718,2.03566,2456.2,2455.3,2.03638]
[1725247853873,2.03584,2456.0,2455.4,0.28507622]
[1725247854579,2.03584,2456.0,2455.4,0.203638]
[1725247854774,2.03584,2456.0,2455.1,2.03656]
[1725247855095,2.03584,2456.0,2454.8,4.30572]
[1725247855096,4.52641,2455.9,2454.8,4.30572]
[1725247855266,2.4905,2455.9,2455.2,2.03648]
[1725247855463,3.0,2456.0,2455.3,0.08144384]
[1725247855663,5.4905,2456.2,2455.5,2.03623]
[1725247855864,5.4905,2456.2,2455.6,0.08144016]
[1725247856288,5.4905,2456.2,2455.5,3.30754476]
[1725247856676,2.03584,2456.0,2455.3,4.52719]
[1725247856998,2.03599,2455.8,2455.0,2.4908]
[1725247857164,2.03599,2455.8,2455.2,2.03649]
[1725247858018,2.03599,2455.8,2455.3,3.30754476]
[1725247858174,2.03599,2455.8,2455.3,3.84194824]
[1725247860291,2.03584,2456.0,2455.3,3.84194824]
[1725247860490,2.03584,2456.0,2455.3,5.95978563]
[1725247861831,7.5262,2456.2,2455.6,2.03609]
[1725247861832,3.0,2456.2,2455.6,2.03609]
[1725247861986,2.03558,2456.3,2455.7,0.203609]
[1725247862181,2.03584,2456.0,2455.4,2.03625]
[1725247862382,2.03584,2456.0,2455.3,0.53440348]
[1725247862579,2.03599,2455.8,2455.3,0.53440348]
[1725247862789,2.03599,2455.8,2455.1,4.41527]
[1725247863724,2.03599,2455.8,2455.2,2.03649]
[1725247867027,2.446,2455.7,2455.1,3.30754476]
[1725247867402,2.03618,2455.6,2455.1,3.30754476]
[1725247870625,2.03626,2455.5,2455.1,3.30754476]
[1725247871185,2.0365,2455.2,2454.7,10.73754476]
[1725247871387,2.24015,2455.2,2454.7,7.43]
[1725247871591,2.03657,2455.1,2454.7,7.43]
[1725247872195,2.0365,2455.2,2454.7,7.43]
[1725247872728,2.0365,2455.2,2454.8,3.30754476]
[1725247873200,2.03635,2455.4,2454.8,3.30754476]
[1725247873408,2.03635,2455.4,2454.8,4.58499624]
[1725247874118,2.446,2455.5,2455.0,3.30754476]
[1725247874303,4.48226,2455.5,2454.8,3.31420148]
[1725247874707,5.434106,2455.5,2454.8,3.31420148]
[1725247877505,5.434106,2455.5,2454.8,1.27745148]
[1725247877702,2.03641,2455.3,2454.7,10.73754476]
[1725247877902,2.2634,2455.2,2454.7,10.73754476]
[1725247878221,2.2634,2455.2,2454.0,5.34501476]
[1725247878222,2.4285,2454.7,2454.0,2.03741]
[1725247879143,2.037,2454.6,2454.0,2.03741]
[1725247879520,2.03713,2454.5,2453.7,2.03766]
[1725247879706,2.4285,2454.9,2454.0,2.4701]
[1725247879902,2.4285,2454.9,2454.1,2.03733]
[1725247880544,3.0,2455.3,2453.3,2.272]
[1725247880545,2.0373,2454.3,2453.3,2.272]
[1725247880743,2.4453,2454.6,2453.3,2.272]
[1725247880744,5.03715,2454.5,2453.8,2.0376]
[1725247880950,2.4453,2454.4,2453.6,2.03778]
[1725247881257,2.4453,2453.9,2453.4,2.03794]
[1725247882230,2.4453,2453.9,2453.4,2.03792]
[1725247882406,2.4453,2453.9,2453.5,2.03789]
[1725247882616,2.4453,2453.9,2453.5,2.445471]
[1725247884004,7.48256,2454.3,2453.6,2.11930547]
[1725247884204,2.03708,2454.5,2453.9,2.03751]
[1725247884404,2.03708,2454.5,2453.8,2.03765]
[1725247885208,2.03708,2454.5,2453.9,2.03757]
[1725247885831,5.03708,2454.5,2453.9,2.03757]
[1725247886060,3.0,2454.5,2454.0,2.11892839]
[1725247886352,2.03691,2454.7,2454.0,2.03743]
[1725247886502,2.03708,2454.5,2453.8,2.03764]
[1725247886704,2.4453,2454.4,2453.8,2.03764]
[1725247886905,2.4453,2454.4,2453.8,2.03758]
[1725247887959,5.134412,2454.4,2453.8,2.03758]
[1725247889331,2.03724,2454.3,2453.6,2.03776]
[1725247890452,7.171582,2454.4,2453.7,4.07534]
[1725247890743,6.51963,2454.4,2453.7,4.07534]
[1725247890909,4.07399,2454.6,2453.7,4.07534]
[1725247890910,4.07399,2454.6,2453.8,0.0815028]
[1725247891246,3.0,2454.5,2454.0,4.07496]
[1725247892105,3.0,2454.5,2454.0,5.44936048]
[1725247892307,5.2854,2454.7,2454.3,4.07446]
[1725247892506,2.2854,2454.7,2454.3,4.07446]
[1725247892726,3.0,2454.6,2454.3,4.07446]
[1725247892908,2.2854,2454.7,2454.3,4.07446]
[1725247893107,2.2854,2454.7,2454.1,4.07471]
[1725247893312,5.2854,2454.7,2454.1,4.07471]
[1725247894104,5.2854,2454.7,2454.2,4.07463]
[1725247894705,2.2854,2454.7,2454.3,4.07444]
[1725247895454,2.2854,2454.7,2454.1,4.07471]
[1725247896250,2.2854,2454.7,2454.2,4.07453]
[1725247896744,2.2854,2454.7,2454.3,4.07445]
[1725247897772,2.4602,2455.0,2454.7,4.07371]
[1725247897938,6.53311,2455.3,2454.7,4.07371]
[1725247898281,0.44996922,2455.2,2454.7,4.07371]
[1725247898762,2.4602,2455.3,2454.7,6.54983]
[1725247899128,2.4602,2455.3,2454.9,4.07336]
[1725247900342,4.5343674,2455.7,2454.9,4.07336]
[1725247900343,2.3764,2455.6,2454.9,4.07336]
[1725247900563,2.3764,2455.6,2455.1,4.07303]
[1725247900923,2.3764,2455.6,2455.2,4.07287]
[1725247901753,5.3764,2455.6,2455.2,4.07287]
[1725247902433,4.0725,2455.5,2454.9,4.07337]
[1725247902661,4.0725,2455.5,2454.9,8.14676]
[1725247903548,4.0725,2455.5,2454.9,4.07337]
[1725247903926,5.3764,2455.6,2455.2,4.07284]
[1725247904127,5.3764,2455.6,2455.1,4.07311]
[1725247904438,5.3764,2455.6,2455.0,4.07321]
[1725247904439,4.0725,2455.5,2455.0,4.07321]
[1725247904649,5.3764,2455.6,2455.1,4.07313]
[1725247904870,9.44875,2455.6,2455.1,4.07313]
[1725247905246,4.07251,2455.5,2455.0,4.07321]
[1725247905783,4.07301,2455.2,2454.6,11.50385]
[1725247906247,4.07301,2455.2,2454.7,4.0738]
[1725247906446,4.07298,2455.3,2454.6,4.07385]
[1725247906660,1.0801013,2455.4,2454.4,4.07416]
[1725247906661,4.07334,2455.0,2454.4,4.07416]
[1725247907478,6.45939,2455.1,2454.4,4.07416]
[1725247907633,7.07347,2455.0,2454.4,4.07416]
[1725247907977,7.07347,2455.0,2454.4,8.14836]
[1725247908184,3.0,2455.0,2454.5,4.07414]
[1725247910038,3.0,2455.0,2454.6,4.07385]
[1725247910234,3.0,2455.0,2454.5,4.07414]
[1725247910235,5.3862,2455.1,2454.5,4.07414]
[1725247910575,10.56413081,2455.1,2454.5,4.07414]
[1725247910951,14.63741081,2455.1,2454.5,4.07414]
[1725247911294,10.56413081,2455.1,2454.5,4.07414]
[1725247912400,5.3862,2455.1,2454.5,4.07405]
[1725247912568,5.3862,2455.1,2454.7,4.07372]
[1725247912775,2.3862,2455.1,2454.7,4.07372]
[1725247913710,2.3862,2455.1,2454.7,8.14744]
[1725247915192,2.3862,2455.1,2454.7,4.07372]
[1725247915717,3.0,2455.2,2454.7,4.4892393]
[1725247915886,5.3514,2455.4,2454.7,4.4891993]
[1725247916110,5.3514,2455.4,2454.7,4.07368]
[1725247916666,9.42416,2455.4,2454.7,4.07368]
[1725247917216,4.07282,2455.3,2454.6,4.07398]
[1725247917370,4.11341007,2455.2,2454.6,4.07398]
[1725247918818,3.0,2455.2,2454.7,8.14751]
[1725247918988,0.4266076,2455.1,2454.7,4.07372]
[1725247919574,0.4266076,2455.1,2454.7,6.38622]
[1725247919891,0.4266076,2455.1,2454.6,4.07391]
[1725247920388,0.4266076,2455.1,2454.6,5.45071248]
[1725247922021,0.4266076,2455.1,2454.7,4.07381]
[1725247923219,0.4266076,2455.1,2454.8,4.07355]
[1725247923390,0.4266076,2455.1,2454.8,4.15501568]
[1725247923723,0.4266076,2455.1,2454.9,4.07339]
[1725247923888,0.4266076,2455.1,2455.0,4.48879557]
[1725247925124,7.07234,2455.6,2455.0,4.48879557]
[1725247925274,0.42659551,2455.1,2455.0,4.48879557]
[1725247925479,7.07234,2455.6,2455.0,4.48879557]
[1725247925893,0.42659773,2455.1,2455.0,4.48879557]
[1725247926218,7.07234,2455.6,2455.0,4.48879557]
[1725247926414,0.42660367,2455.1,2454.9,6.57219]
[1725247926624,2.494,2455.3,2454.7,4.07373]
[1725247926803,0.42661092,2455.1,2454.8,0.640053]
[1725247926992,0.42661092,2455.1,2454.7,4.07373]